{"text_format":"1","workbook":"xlsx","n_sheets":1,"sheets":["Sauvetage Niveau 4"],"not_rendered":{"charts":0,"images":0,"macros":1,"external_links":0,"defined_names":12,"comments":1,"pivot_tables":0},"unopened":[],"bounds":{"document_bytes":16777216,"sheet_cells":100000,"rows_first":2000,"rows_last":500,"rows_between":2000,"halvings":0,"cell_chars":16384,"cell_head_chars":4096},"cells_cut":0,"cells_raw":0,"read":"whole","date_system":"1900"}

{"sheet":"Sauvetage Niveau 4","index":0,"n_rows":70,"n_cols":24,"rows_kept":70,"cut":false,"hidden":false,"merged":[[1,10,1,18],[3,10,3,18],[1,20,1,23],[3,20,3,23],[5,2,5,4],[5,7,5,9],[46,1,46,3],[57,1,57,2],[5,17,5,22],[5,13,5,16],[5,10,5,12],[49,22,51,23]]}
[]
[null,null,null,null,null,null,null,"Classe",null,null,"FEUILLE D'EVALUATION CCF SAUVETAGE",null,null,null,null,null,null,null,null,null,"Année"]
[]
[null,null,null,null,null,null,null,"Professeur",null,null,"Entrer les résultats de temps sous le format \"345\" pour 03 minutes 45 secondes",null,null,null,null,null,null,null,null,null,"Etablissement"]
[]
[null,null,"Baccalauréat",null,null,null,null,"DONNÉES",null,null,"PROJET DE L'ÉLÈVE",null,null,"200 MÈTRES OBSTACLES",null,null,null,"REMORQUAGE",null,null,null,null,null,"PROJET"]
[null,null,"200m ",null,"25m",null,null,"Nom ","Sexe","NOTE","Temps","Mannequin","Distance","Temps","Note","Obst. Franchis","Note","Mannequin","Distance","Performance","Note","Immersions","Note","Note"]
[null,345,1.1574074074074073E-5,6,{"$f":"C8/8","v":"00:00:00.125"},null,null,null,null,{"$f":"IFERROR(IF(Q8=-4,0,O8+Q8+U8+W8+X8),\"\")","v":""},null,null,null,null,{"$f":"IF(N8=\"\",\"\",IF(I8=\"G\",VLOOKUP(N8,TG,2,TRUE),VLOOKUP(N8,TF,2,TRUE)))","v":""},null,{"$f":"IF(P8=\"\",\"\",(P8*0.25)-((8-P8)*0.5))","v":""},null,null,null,{"$f":"IFERROR(IF(OR(T8=$E$57,T8=$E$58,T8=$E$59),0,IF(T8=$E$56,IF(R8=\"Adulte\",VLOOKUP(S8,BaremeREM,2,FALSE),IF(R8=\"Enfant\",VLOOKUP(S8,BaremeREM,3,FALSE),\"\")),\"\")),\"\")","v":""},null,{"$f":"IF(V8=\"\",\"\",VLOOKUP(V8,Immersion,2,FALSE))","v":""},{"$f":"IF(AND(ISTEXT(R8),ISTEXT(S8)),(IF(L8=R8,1,0)+IF(M8=S8,1,0)+VLOOKUP(ABS(K8-N8),Projet,2,TRUE)),\"\")","v":""}]
[null,400,2.6157407407407405E-3,5.5,"00:00:28.250",null,null,null,null,{"$f":"IFERROR(IF(Q9=-4,0,O9+Q9+U9+W9+X9),\"\")","v":""},null,null,null,null,"",null,{"$f":"IF(P9=\"\",\"\",(P9*0.25)-((8-P9)*0.5))","v":""},null,null,null,"",null,"",""]
[null,415,2.7893518518518515E-3,5,"00:00:30.125",null,null,null,null,"",null,null,null,null,"",null,"",null,null,null,"",null,"",""]
[null,430,2.9629629629629628E-3,4.5,"00:00:32",null,null,null,null,"",null,null,null,null,"",null,"",null,null,null,"",null,"",""]
[null,445,3.1365740740740737E-3,4,"00:00:33.875",null,null,null,null,"",null,null,null,null,"",null,"",null,null,null,"",null,"",""]
[null,500,3.3101851851851851E-3,3.5,"00:00:35.750",null,null,null,null,"",null,null,null,null,"",null,"",null,null,null,"",null,"",""]
[null,515,3.4837962962962965E-3,3,"00:00:37.625",null,null,null,null,"",null,null,null,null,"",null,"",null,null,null,"",null,"",""]
[null,530,3.6574074074074078E-3,2.5,"00:00:39.500",null,null,null,null,"",null,null,null,null,"",null,"",null,null,null,"",null,"",""]
[null,545,3.8310185185185188E-3,2,"00:00:41.375",null,null,null,null,"",null,null,null,null,"",null,"",null,null,null,"",null,"",""]
[null,615,4.0046296296296297E-3,1.5,"00:00:43.250",null,null,null,null,"",null,null,null,null,"",null,"",null,null,null,"",null,"",""]
[null,645,4.3518518518518515E-3,1,"00:00:47",null,null,null,null,"",null,null,null,null,"",null,"",null,null,null,"",null,"",""]
[null,715,4.6990740740740743E-3,0.5,"00:00:50.750",null,null,null,null,"",null,null,null,null,"",null,"",null,null,null,"",null,"",""]
[null,null,5.0462962962962961E-3,0,"00:00:54.500",null,null,null,null,"",null,null,null,null,"",null,"",null,null,null,"",null,"",""]
[null,430,1.1574074074074073E-5,6,{"$f":"C21/8","v":"00:00:00.125"},null,null,null,null,"",null,null,null,null,"",null,"",null,null,null,"",null,"",""]
[null,445,3.1365740740740737E-3,5.5,"00:00:33.875",null,null,null,null,"",null,null,null,null,"",null,"",null,null,null,"",null,"",""]
[null,500,3.3101851851851851E-3,5,"00:00:35.750",null,null,null,null,"",null,null,null,null,"",null,"",null,null,null,"",null,"",""]
[null,515,3.4837962962962965E-3,4.5,"00:00:37.625",null,null,null,null,"",null,null,null,null,"",null,"",null,null,null,"",null,"",""]
[null,530,3.6574074074074078E-3,4,"00:00:39.500",null,null,null,null,"",null,null,null,null,"",null,"",null,null,null,"",null,"",""]
[null,545,3.8310185185185188E-3,3.5,"00:00:41.375",null,null,null,null,"",null,null,null,null,"",null,"",null,null,null,"",null,"",""]
[null,600,4.0046296296296297E-3,3,"00:00:43.250",null,null,null,null,"",null,null,null,null,"",null,"",null,null,null,"",null,"",""]
[null,615,4.178240740740741E-3,2.5,"00:00:45.125",null,null,null,null,"",null,null,null,null,"",null,"",null,null,null,"",null,"",""]
[null,630,4.3518518518518515E-3,2,"00:00:47",null,null,null,null,"",null,null,null,null,"",null,"",null,null,null,"",null,"",""]
[null,700,4.5254629629629629E-3,1.5,"00:00:48.875",null,null,null,null,"",null,null,null,null,"",null,"",null,null,null,"",null,"",""]
[null,730,4.8726851851851856E-3,1,"00:00:52.625",null,null,null,null,"",null,null,null,null,"",null,"",null,null,null,"",null,"",""]
[null,800,5.2199074074074075E-3,0.5,"00:00:56.375",null,null,null,null,"",null,null,null,null,"",null,"",null,null,null,"",null,"",""]
[null,null,5.5671296296296293E-3,0,"00:01:00.125",null,null,null,null,"",null,null,null,null,"",null,"",null,null,null,"",null,"",""]
[null,null,0,1,"00:00:00",null,null,null,null,"",null,null,null,null,"",null,"",null,null,null,"",null,"",""]
[null,null,1.273148148148148E-4,0,"00:00:01.375",null,null,null,null,"",null,null,null,null,"",null,"",null,null,null,"",null,"",""]
[null,null,3.4722222222222224E-4,0,"00:00:03.750",null,null,null,null,"",null,null,null,null,"",null,"",null,null,null,"",null,"",""]
[null,"Obstacles",0,null,null,null,null,null,null,"",null,null,null,null,"",null,"",null,null,null,"",null,"",""]
[null,null,1,null,null,null,null,null,null,"",null,null,null,null,"",null,"",null,null,null,"",null,"",""]
[null,null,2,null,null,null,null,null,null,"",null,null,null,null,"",null,"",null,null,null,"",null,"",""]
[null,null,3,null,null,null,null,null,null,"",null,null,null,null,"",null,"",null,null,null,"",null,"",""]
[null,null,4,null,null,null,null,null,null,"",null,null,null,null,"",null,"",null,null,null,"",null,"",""]
[null,null,5,null,null,null,null,null,null,"",null,null,null,null,"",null,"",null,null,null,"",null,"",""]
[null,null,6,null,null,null,null,null,null,"",null,null,null,null,"",null,"",null,null,null,"",null,"",""]
[null,null,7,null,null,null,null,null,null,"",null,null,null,null,"",null,"",null,null,null,"",null,"",""]
[null,null,8,null,null,null,null,null,null,"",null,null,null,null,"",null,"",null,null,null,"",null,"",""]
[null,null,null,null,null,null,null,null,null,"",null,null,null,null,"",null,"",null,null,null,"",null,"",""]
[null,"Distance de remorquage",null,null,null,null,null,null,null,"",null,null,null,null,"",null,"",null,null,null,"",null,"",""]
[null,null,"Adulte","Enfant",null,null,null,null,null,"",null,null,null,null,"",null,"",null,null,null,"",null,"",""]
[null,"30m et +",6,3]
[null,"25m et +",5,3,null,null,null,null,null,null,null,null,null,null,null,null,null,null,null,null,null,null,"Paul ANTIAO\nLycée Jean Moulin\n2018"]
[null,"20m et +",4,3]
[null,"15m et +",3,2]
[null,"+ de 10m",2,1]
[null,"10m",1,0]
[null,"- de 10m",null,null,"Performance"]
[null,null,null,null,"Distance réalisée en 1' ou -"]
[null,null,null,null,"Trajet de moins de 10m"]
[null,"Qualité du remorquage",null,null,"Temps dépassé de 5'' ou +"]
[null,0,3,null,"Arrêt avant la fin du retour"]
[null,1,2.75]
[null,2,2.5]
[null,3,2.25]
[null,4,2]
[null,5,1.75]
[null,6,1.5]
[null,7,1.25]
[null,8,1]
[null,9,0.75]
[null,10,0.5]
[null,"10+",0]